Cogmind - Beta 13 @@@ ROGUE MODE // 2024.03.31 @ 14:17:20 Player: CrossedViper Result: Destroyed by as-34095 with Assembled Blade Performance ------------- Evolutions (0) 0 Regions Visited (2) 400 Robots Destroyed (32) 160 Value Destroyed (665) 665 Prototype IDs (0) 0 Alien Tech Used (0) 0 Bonus (0) 0 TOTAL SCORE: 1225 Bonus ------- None Cogmind --------- Core Integrity 0/250 Matter 300/300 Energy 99/100 System Corruption 5% Temperature Cool (0) Movement Treading (160) Location -10/Mines Parts ------- > --- POWER (1) -------- (None) > --- PROPULSION (2) --- Light Treads Light Treads > --- UTILITY (2) ------ Heat Sink Large Storage Unit > --- WEAPON (2) ------- Beam Cannon Maul > --- INVENTORY (15) --- Light Treads Improved Treads Improved Treads Improved Treads Improved Treads Huge Storage Unit Seismic Detector Hacking Suite Tractor Beam Beam Cannon Beam Cannon Beam Cannon Beam Cannon Beam Cannon Peak State ------------ > --- POWER ------------ Light Ion Engine > --- PROPULSION ------- Light Treads Light Treads > --- UTILITY ---------- Large Storage Unit Seismic Detector > --- WEAPON ----------- Medium Laser Light Assault Rifle > --- INVENTORY -------- Light Treads Light Treads Light Treads Improved Treads Improved Treads Improved Treads Improved Treads Small Storage Unit Huge Storage Unit Hacking Suite Beam Cannon Beam Cannon Beam Cannon Light Assault Rifle [Rating: 9] Favorites ----------- Power Ion Engine Engine Ion Engine Propulsion Light Treads Treads Light Treads Utility Large Storage Unit Device Seismic Detector Storage Large Storage Unit Weapon Beam Cannon Energy Gun Medium Laser Energy Cannon Beam Cannon Ballistic Gun Light Assault Rifle Launcher Grenade Launcher Impact Weapon Maul Build | -11 -10 -10 ------- Run | Yrd Mat Min Slots Evolved . | . . . Power . | . . . Propulsion . | . . . Utility . | . . . Weapon . | . . . Parts Attached 21 | 6 7 8 Power 4 | 1 2 1 Engine 4 | 1 2 1 Core . | . . . Reactor . | . . . Propulsion 4 | 2 . 2 Treads 4 | 2 . 2 Leg . | . . . Wheel . | . . . Hover . | . . . Flight . | . . . Utility 4 | 1 2 1 Device 2 | . 1 1 Storage 2 | 1 1 . Processor . | . . . Hackware . | . . . Protection . | . . . Artifact . | . . . Weapon 9 | 2 3 4 Energy Gun 2 | 1 1 . Energy Cannon 4 | . 2 2 Ballistic Gun 1 | 1 . . Ballistic Cannon . | . . . Launcher 1 | . . 1 Special Weapon . | . . . Impact Weapon 1 | . . 1 Slashing Weapon . | . . . Piercing Weapon . | . . . Special Melee Weapon . | . . . Unidentified Prototypes . | . . . Parts Lost 3 | . 1 2 Power 2 | . 1 1 Propulsion . | . . . Utility . | . . . Weapon 1 | . . 1 Highest Loss Streak 2 | . 1 2 To Critical Strikes . | . . . Average Slot Usage (%) 99 | . 99 98 Engine 13 | . 13 12 Treads 28 | . 28 28 Device 14 | . 14 14 Storage 14 | . 14 14 Energy Gun 6 | . 11 . Energy Cannon 11 | . 6 17 Ballistic Gun 5 | . 10 . Launcher 4 | . . 9 Naked Turns . | . . . Heaviest Build 32 | 11 32 32 Greatest Support 40 | 40 40 40 Greatest Overweight (x) . | . . . Average Overweight (x) . | . . . Largest Inventory Capacity 15 | 8 15 15 Average Capacity 14 | 7 14 15 Most Carried 15 | 4 15 15 Average Carried 12 | 2 11 14 Final Capacity 15 | 8 15 15 Final Carried 15 | 3 15 14 Class Distribution -------------------- 100% | Mutant Dominant Class ---------------- Mutant | -10/Materials Mutant | -10/Mines Resources | -11 -10 -10 ----------- Run | Yrd Mat Min Matter Collected 569 | 273 118 178 Remotely . | . . . Salvage Created 1238 | 180 723 335 Parts 62 | 9 43 10 Haulers Intercepted 2 | . 2 . Recyclers Shooed 3 | 1 2 . Parts Field Recycled . | . . . Retrieved Matter . | . . . Parts Self-Destructed . | . . . Prevented . | . . . Kills | -11 -10 -10 ------- Run | Yrd Mat Min Combat Hostiles Destroyed 24 | . 12 12 Melee 1 | . . 1 Guns 11 | . 11 . Cannons 6 | . 1 5 AOE 5 | . . 5 Classes Destroyed 9 | 3 5 1 Worker 4 | 1 2 1 Tunneler 3 | 3 . . Hauler 2 | . 2 . Recycler 3 | 1 1 1 Operator 1 | . 1 . Watcher 3 | . 3 . Swarmer 3 | . 3 . Grunt 13 | . 9 4 Assembled 8 | . . 8 Best Kill Streak 5 | 2 3 5 Combat Bots Only 5 | . 3 5 Max Kills in Single Turn 2 | 1 1 2 Gunslinging . | . . . Exploded 2 | . . 2 Melee 1 | . . 1 Uniques/NPCs Destroyed . | . . . Combat | -11 -10 -10 -------- Run | Yrd Mat Min Hostile Shots Fired 92 | . 53 39 Missed 16 | . 8 8 Damage Taken 1048 | . 491 557 Core 253 | . 146 107 Absorbed by Shields . | . . . Core Remaining (%) 100 | 100 . . Volleys Fired 103 | 13 62 28 Largest 2 | 2 2 2 Hottest 120 | 70 120 120 Shots Fired 196 | 26 123 47 Gun 143 | 26 117 . Cannon 47 | . 6 41 Launcher 6 | . . 6 Special . | . . . Kinetic 72 | 13 59 . Thermal 118 | 13 64 41 Explosive 6 | . . 6 Electromagnetic . | . . . Robot Hit Streak 16 | 3 16 16 Robot Miss Streak 3 | 2 3 3 Penetration Max . | . . . Secondary Targets 3 | . 3 . Max Gunslinging Chain 1 | . 1 . Shots Hit Robots 125 | 14 85 26 Core Hits 69 | 7 42 20 Critical Kills 1 | . 1 . Critical Parts Destroyed 2 | . 1 1 Critical Strikes 7 | . 6 1 Burn 4 | . 4 . Destroy 2 | . 2 . Smash 1 | . . 1 Melee Attacks 2 | . . 2 Impact 2 | . . 2 Slashing . | . . . Piercing . | . . . Sneak Attacks . | . . . Combat Hostiles . | . . . Follow-up Attacks . | . . . Damage Inflicted 1897 | 149 938 810 Guns 1014 | 149 865 . Cannons 478 | . 73 405 Explosions 340 | . . 340 Melee 57 | . . 57 Ramming 8 | . . 8 Kinetic 422 | 75 347 . Thermal 1183 | 74 591 518 Explosive 227 | . . 227 Electromagnetic . | . . . Impact 57 | . . 57 Slashing . | . . . Piercing . | . . . Highest Corruption 5 | . . 5 Average Corruption 5 | . . 5 Corruption Purged . | . . . Corruption Blocked . | . . . Effects 2 | . . 2 Message Errors 2 | . . 2 Overload Shots . | . . . Overflow Damage 107 | . . 107 Projectiles . | . . . Explosions 50 | . . 50 Melee 57 | . . 57 Knockbacks 1 | . . 1 Impact 1 | . . 1 Kinetic . | . . . Secondary . | . . . Self-Inflicted Damage 56 | . . 56 Shots 2 | . . 2 Rammed 1 | . . 1 Targets Rammed 1 | . . 1 Kicked . | . . . Crushed . | . . . Highest Temperature 342 | 110 170 342 Average Temperature 84 | 37 57 171 Received Heat Transfer 526 | . 231 295 Effects 4 | . . 4 Interference 2 | . . 2 Matter Decay 1 | . . 1 Short Circuit 1 | . . 1 Siege Activations . | . . . Robots Corrupted . | . . . Combat Hostiles . | . . . Parts Fried . | . . . Impact Corruptions 1 | . . 1 Robots Melted 1 | . . 1 Combat Hostiles 1 | . . 1 Parts Melted 2 | 1 1 . Heat Transferred 3134 | 222 1961 951 Parts Sabotaged . | . . . Parts Stolen . | . . . Parts Stripped . | . . . Power Chain Reactions . | . . . Alert | -11 -10 -10 ------- Run | Yrd Mat Min Peak Influence 231 | 25 231 128 Initial 16 | . 16 16 Average 54 | 9 77 34 Maximum Alert Level 1 | . 1 . Low Security (%) 98 | 100 97 100 Level 1 1 | . 2 . Level 2 . | . . . Level 3 . | . . . Level 4 . | . . . Level 5 . | . . . High Security . | . . . Max Security . | . . . Squads Dispatched 2 | . 2 . Investigation 2 | . 2 . Extermination . | . . . Reinforcement . | . . . Assault . | . . . Garrison . | . . . Intercept . | . . . Searches Triggered . | . . . Construction Impeded . | . . . Haulers Reinforced . | . . . Active Scanning Responses . | . . . Cargo Convoy Interrupts . | . . . Stealth | -11 -10 -10 --------- Run | Yrd Mat Min Distress Signals 4 | . 4 . Communications Jammed . | . . . Distress Signals . | . . . Times Spotted 36 | . 24 12 Peak Tracking Total 5 | . 5 3 Tactical Retreats . | . . . Traps | -11 -10 -10 ------- Run | Yrd Mat Min Traps Triggered 1 | . 1 . Indirectly . | . . . Trap Hack Attempts . | . . . Triggered . | . . . Disarmed . | . . . Reprogrammed . | . . . Reused . | . . . Traps Extracted . | . . . Installed . | . . . Triggered . | . . . Machines | -11 -10 -10 ---------- Run | Yrd Mat Min Machines Disabled 3 | . . 3 Max in Single Turn 3 | . . 3 Machines Repaired . | . . . Machines Dismantled . | . . . Machines Sabotaged . | . . . Overloaded Fab Kills . | . . . Hacking | -11 -10 -10 --------- Run | Yrd Mat Min Machines Accessed 7 | . 7 . Terminals 5 | . 5 . Fabricators . | . . . Repair Stations 1 | . 1 . Recycling Units 1 | . 1 . Scanalyzers . | . . . Garrison Access . | . . . Total Hacks 20 | . 20 . Successful 9 | . 9 . Failed 10 | . 10 . Catastrophic 2 | . 2 . Database Lockouts 1 | . 1 . Manual 11 | . 11 . Terminals 18 | . 18 . Fabricators . | . . . Repair Stations 1 | . 1 . Recycling Units 1 | . 1 . Scanalyzers . | . . . Garrison Access . | . . . Terminal Hacks 6 | . 6 . Robot Analysis 1 | . 1 . Emergency Access Points 1 | . 1 . Dispatch Records 1 | . 1 . Hauler Manifests 1 | . 1 . Zone Layout 2 | . 2 . Fabricator Hacks . | . . . Repair Station Hacks . | . . . Recycling Unit Hacks . | . . . Scanalyzer . | . . . Garrison Access Hacks . | . . . Unauthorized Hacks 3 | . 3 . Terminals 2 | . 2 . Botnet 1 | . 1 . Operators 1 | . 1 . Fabricators . | . . . Repair Stations . | . . . Recycling Units 1 | . 1 . Tunnel 1 | . 1 . Scanalyzers . | . . . Garrison Access . | . . . Data Cores Recovered 1 | . 1 . Used . | . . . Hacking Detections 4 | . 4 . Full Trace Events . | . . . Feedback Events . | . . . Feedback Blocked . | . . . Robot Schematics Acquired . | . . . Robots Built . | . . . Authchips . | . . . Time . | . . . Total Robot Build Rating . | . . . Part Schematics Acquired . | . . . Parts Built . | . . . Authchips . | . . . Time . | . . . Total Part Build Rating . | . . . Parts Repaired . | . . . Time . | . . . Parts Recycled . | . . . Recycled Matter . | . . . Retrieved Matter . | . . . Retrieved Components . | . . . Parts Scanalyzed . | . . . Part Schematics Acquired . | . . . Parts Damaged . | . . . Bothacking | -11 -10 -10 ------------ Run | Yrd Mat Min Used RIF Installer . | . . . Robots Hacked . | . . . Non-combat . | . . . Combat . | . . . Robot Hacks Applied . | . . . Relay Couplers Released . | . . . Fabnet Peak Effective % . | . . . Robots Rewired . | . . . Allies Hacked . | . . . Hacks Repelled . | . . . Allies | -11 -10 -10 -------- Run | Yrd Mat Min Total Allies 1 | . . 1 Largest Group 1 | . . 1 Highest-Rated Group 31 | . . 31 Highest-Rated Ally 31 | . . 31 Total Orders . | . . . Ally Attacks . | . . . Total Damage . | . . . Kills . | . . . Allies Corrupted . | . . . Allies Melted . | . . . Intel | -11 -10 -10 ------- Run | Yrd Mat Min Robot Analysis Total 1 | . 1 . Derelict Logs Recovered . | . . . Drone Launches . | . . . Drone Recoveries . | . . . Exploration | -11 -10 -10 ------------- Run | Yrd Mat Min Turns Passed 3143 | 209 1615 1319 Spaces Moved 1086 | 113 650 323 Core 20 | 20 . . Treads 1066 | 93 650 323 Legs . | . . . Wheels . | . . . Hover . | . . . Flight . | . . . Fastest Speed 50 | 50 160 160 Average Speed 157 | 140 160 160 Slowest Speed 160 | 160 160 160 Overloaded Moves . | . . . Propulsion Burnouts . | . . . Robots Hopped . | . . . Cave-ins Triggered . | . . . Exploration Rate (%) 49 | 6 90 51 Regions Visited 2 Branch Regions 1 Pre-discovered Areas 1 | . 1 . Known Exits Taken . | . . . Unknown Exits Taken 2 | 1 1 . Scrap Searched 1 | . . 1 Spaces Dug 9 | . . 9 Terrain Destroyed 58 | . . 58 Melee . | . . . Projectile . | . . . AOE 58 | . . 58 Terrain Rammed . | . . . Walls Destroyed . | . . . Machines Disabled . | . . . Actions | -11 -10 -10 --------- Run | Yrd Mat Min Total 2330 | 140 1114 1076 Wait 1079 | . 375 704 Move 1084 | 112 649 323 Hop . | . . . Pick Up 28 | 9 15 4 Fast Attach 6 | . 4 2 Attach 11 | 6 2 3 Detach . | . . . Swap 4 | . 1 3 Drop 12 | . 6 6 Fire 103 | 13 62 28 Melee 2 | . . 2 Ram . | . . . Kick . | . . . Crush 1 | . . 1 Escape Stasis . | . . . Rewire . | . . . Trap . | . . . Miscellaneous . | . . . Route ------- -11/Scrapyard -10/Materials (discovered 4 exits: [*Mat x3] / [*Min]) -10/Mines (discovered 1 exit: [*Mat]) History --------- Turn | Location | Event 6 | -11/Scrapyard | Discovered new exit (range 15) 210 | -11/Scrapyard | Entered Materials 277 | -10/Materials | Central database locked down 307 | -10/Materials | Build established: Mutant 800 | -10/Materials | Discovered new exit (range 13) 983 | -10/Materials | Discovered new exit (range 11) 1227 | -10/Materials | Discovered new exit (range 10) 1333 | -10/Materials | Discovered new exit (range 14) 1362 | -10/Materials | Core integrity fell below 50% 1825 | -10/Materials | Entered Mines 2077 | -10/Mines | Discovered new exit (range 13) 2154 | -10/Mines | Received a Mining Laser from a helpful Derelict 2216 | -10/Mines | Assembled infested the area 2221 | -10/Mines | Assisted by a Guerilla fighting off Assembled 3019 | -10/Mines | Core integrity fell below 20% 3144 | -10/Mines | Destroyed by as-34095 with Assembled Blade Last Messages --------------- 03009_ System corrupted by crushing effect (+5). 03011_ as-10376 destroyed. 03017_ The unstable cave ceiling collapses. 03021_ Overheating: System interference. 03021_ Beam Cannon temporarily disabled. 03027_ as-40988 destroyed. 03028_ Beam Cannon broken. 03028_ Overheating: Short circuit. 03042_ as-46353 suffers critical hit (Smash). 03042_ Destroyed Asb. Hover Unit. 03042_ as-46353 system corrupted by crushing effect. 03042_ as-46353 destroyed. 03045_ Acquired 16 matter. 03053_ Acquired 12 matter. 03055_ Acquired 19 matter. 03058_ Acquired 3 matter. 03095_ 5P|#OKAQ%8R8A3CY3Q5QQ7D/ 03096_ The unstable cave ceiling collapses. 03123_ GSSDFOCJ#OM9Q6&W//T5M&FOP4#U>CN3N5 Map ----- +----------------------------------------------------+ | ?????????????????????????????????????????????????? | | ???????????????????????????????????####??????????? | | ??????????????????????????????????## ##?????????? | | ????????????????????????????####### ######????? | | ###??????????????????####???# < ##### | | # ###????????######## ##??# | | ##??????# ##?# #### ] | | | #??????# #?# #??## #####*# | | ######## #?## ### #???## ##???#%#? | | # ### #????## ##????#!#? | | ## #?????# ##?????# #? | | ?#### ########## ########?????# #?###### ## | | ????## #????????## ###????????????# #?# | | ?????#####?????????# ##????????????### #?# ####### | | ??????????########## #????????????## #?# #?????? | | ??????????# # #????????????# ### #?????? | | ??????????# # #????????????# #?????? | | ??????????# #%########?????#!! ### #?????? | | ??????????# # #??????# #?# #?????? | | ??????????# ######## #???????# ### #?????? | | ??????????# ##???# #??????## ## #?????? | | ??????????# #??##%##?????# #?????? | | ??????????# #### #????## ####?????? | | ??????????# # # # #????# ##????##### | | ??????????# ! # #????#% #?????# | | ??????????# | @a% #???## ####### !! | | ??????????# ! ### ##??## ! | | ??????????# # # #####!%*|!###### # ! | | ??????????# "###### *% %%%==%##????# # ! ! | | ??????????#####"#"###????## #%* |!=!##?????# # | | ??????????????#####???????###%= #??????# ##### | | ????????????????????????????# #??????# ##### | | ????????????????????????????## #??????# | | ?????????????????????????????### | #??????# ##### | | ???????????????????????????????##[ ##??????# #???# | | ????????????????????????????????#%##???????# ##### | | ????????????????????????????????# #????????# | | ????????????????????????????????# #????????####### | | ????????????????????????????????# ??????????????? | | ????????????????????????????????## ??????????????? | | ?????????????????????????????????? ??????????????? | | ?????????????????????????????????? ??????????????? | | ?????????????????????????????????? #?????????????? | | ?????????????????????????????????? #?????????????? | | ?????????????????????????????????? #?????????????? | | ???????????????????????????????????#?????????????# | | ?????????????????????????????????????????????????# | | ?????????????????????????????????????????????????# | | ?????????????????????????????????????????????????# | | ?????????????????????????????????????????????????# | +----------------------------------------------------+ Best States ------------- Heat Dissipation 35 Energy Generation 10 Energy Capacity 250 Matter Stores 300 Matter Capacity 300 Sight Range 16 Terrain Scan Density 10 Evasion (%) 50 Recoil Reduction 2 Item Schematics ----------------- None Robot Schematics ------------------ None Fabricated ------------ Nothing Alien Tech Used ----------------- None Achievements -------------- None Challenges ------------ None Game ------ Seed MultitargetingSwarmDrive Manual? 0 Play Time 00:11:48 Cumulative 747.3 hours Start 2024.03.31 @ 14:05:23 End 2024.03.31 @ 14:17:20 Sessions 1 Manual Loads 0 Difficulty Rogue Special Mode None Game No. 487 Rogue 480 Adventurer 0 Explorer 7 Win Type - Total 54 Types 20/5/19/2/0/1/5/1/1 Lore% 86 Gallery% 95 Achievement% 83 Wizard Run 0 Options --------- Layout 2 ASCII 0 Keyboard 0 Movement Numpad Keybinds 0 Fullscreen 1 Font 24/Tamsyn Map View 50x44 Zoom Use 0% Tactical HUD 1 Map Filters NONE Filters NONE Steam 1 RUN: 913829fb-ec7a-4851-b65e-7cdcba084347